lending/lending_fUSD_20250920
["ID","MTS","AMOUNT","RATE_DAILY","PERIOD"]
[386518674,1758336438870,-214.68824987,0.00018541,3]
[386518675,1758336440279,-153.93,0.00018541,3]
[386518681,1758336444308,-159.67,0.00018541,3]
[386518682,1758336445893,-362.28123976,0.00018541,3]
[386518683,1758336447979,-246.07,0.00018541,3]
[386518684,1758336450304,-152.85379687,0.00018541,3]
[386518686,1758336519914,1000.0,0.000184,2]
[386518688,1758336620906,-500.0,0.00018559,2]
[386518689,1758336620942,-569.6148548,0.00018559,2]
[386518690,1758336620972,-190.07464083,0.0001856,3]
[386518691,1758336620999,-3578.3251452,0.0001856,2]
[386518692,1758336621028,-1200.0,0.00018575,2]
[386518693,1758336621056,-300.0,0.00018575,2]
[386518694,1758336621084,-30.98535917,0.00018575,2]
[386518716,1758336631601,-150.01464083,0.00018575,2]
[386518718,1758336631612,-5214.23,0.00018577,2]
[386518720,1758336631622,-1000.0,0.000186,2]
[386518722,1758336631631,-750.69,0.00018655,2]
[386518724,1758336631641,-209.0,0.0001867,2]
[386518726,1758336631651,-712.59,0.00018697,2]
[386518728,1758336631665,-913.8,0.00018697,2]
[386518729,1758336631675,-1000.0,0.000188,2]
[386518730,1758336631684,-376.1,0.00018865,2]
[386518731,1758336631694,-161.7,0.00018914,2]
[386518732,1758336631704,-1000.0,0.00019,2]
[386518733,1758336631714,-250.0,0.00019015,2]
[386518734,1758336631725,-209.0,0.0001904,2]
[386518735,1758336631735,-155.82,0.00019096,2]
[386518736,1758336631744,-516.38316968,0.00019157,2]
[386518737,1758336631754,-500.0,0.00019178,2]
[386518738,1758336631764,-195.64200865,0.00019178,2]
[386518739,1758336631773,-199.83,0.00019178,2]
[386518740,1758336631783,-1201.16381609,0.000192,2]
[386518741,1758336631897,-331.81062003,0.000192,2]
[386518742,1758336631909,-467.02556388,0.000192,2]
[386518743,1758336631919,-110.22533483,0.000192,2]
[386518744,1758336631930,-325.7805555,0.000192,2]
[386518745,1758336631972,-563.99410967,0.000192,2]
[386518746,1758336631983,-250.0,0.00019234,2]
[386518747,1758336631993,-500.0,0.0001937,2]
[386518748,1758336632003,-1000.0,0.000194,2]
[386518749,1758336632013,-176.09,0.00019401,2]
[386518750,1758336632024,-209.0,0.0001941,2]
[386518751,1758336632034,-168.0,0.0001949,2]
[386518752,1758336632044,-178.55122064,0.000196,2]
[386518755,1758336637523,-821.44877936,0.000196,2]
[386518756,1758336637532,-769.23196547,0.00019671,2]
[386518757,1758336637542,-1425.0,0.00019752,2]
[386518758,1758336637552,-209.0,0.0001978,2]
[386518759,1758336637561,-595.713,0.00019797,2]
[386518760,1758336637572,-1000.0,0.000198,2]
[386518761,1758336637582,-3959.52836,0.000198,2]
[386518762,1758336637591,-500.0,0.00019808,2]
[386518763,1758336637600,-376.1,0.00019808,2]
[386518764,1758336637610,-1097.11301555,0.0001984,2]
[386518765,1758336637634,-327.88698445,0.0001984,2]
[386518766,1758336637643,-72.11301555,0.0001984,2]
[386518767,1758336637681,-127.88698445,0.0001984,2]
[386518768,1758336637690,-168.0,0.00019848,2]
[386518769,1758336637700,-825.60800073,0.00019848,2]
[386518770,1758336637709,-2041.0,0.00019878,2]
[386518771,1758336637718,-3393.0,0.00019878,2]
[386518772,1758336637727,-921.0,0.00019878,2]
[386518773,1758336637736,-1261.0,0.00019878,2]
[386518774,1758336637745,-569.0,0.00019878,2]
[386518775,1758336637754,-1582.0,0.00019878,2]
[386518776,1758336637764,-1304.0,0.00019878,2]
[386518777,1758336637774,-602.0,0.00019878,2]
[386518778,1758336637783,-813.0,0.00019878,2]
[386518779,1758336637792,-1000.498,0.00019878,2]
[386518780,1758336637802,-4174.0,0.00019878,2]
[386518781,1758336637811,-727.0,0.00019878,2]
[386518782,1758336637820,-898.0,0.00019878,2]
[386518783,1758336637829,-191.8,0.00019882,2]
[386518784,1758336637838,-1801.0099,0.00019899,2]
[386518785,1758336637848,-2000.0,0.000199,2]
[386518786,1758336637858,-9331.6522888,0.000199,2]
[386518787,1758336637867,-281.5792781,0.000199,2]
[386518788,1758336637878,-79.0622219,0.000199,2]
[386518789,1758336637887,-5000.0,0.000199,2]
[386518790,1758336637897,-1226.99,0.000199,2]
[386518791,1758336637906,-253.20783349,0.000199,2]
[386518792,1758336637916,-862.63193988,0.000199,2]
[386518793,1758336637925,-169.06438172,0.000199,2]
[386518794,1758336637934,-268.52004076,0.000199,2]
[386518795,1758336637943,-4243.70098212,0.000199,2]
[386518796,1758336637953,-209.36,0.0001992,2]
[386518797,1758336637962,-543.4,0.0001992,2]
[386518798,1758336637971,-1193.31,0.0001992,2]
[386518799,1758336637980,-1442.69,0.0001992,2]
[386518800,1758336637989,-1999.3059211,0.0001993,2]
[386518801,1758336637998,-500.0,0.00019938,2]
[386518802,1758336638007,-464.0,0.00019938,2]
[386518803,1758336638016,-178.10400192,0.00019938,2]
[386518804,1758336638026,-1170.0,0.00019938,2]
[386518805,1758336638035,-502.0,0.00019938,2]
[386518806,1758336638044,-150.0,0.00019938,2]
[386518807,1758336638054,-500.0,0.00019938,2]
[386518808,1758336638063,-496.0,0.00019938,2]
[386518809,1758336638073,-150.0,0.00019938,2]
[386518810,1758336638082,-1418.65267711,0.00019938,2]
[386518814,1758336639843,-138.13280118,0.00019938,2]
[386518815,1758336639884,-636.21452171,0.00019938,2]
[386518816,1758336639893,-150.0,0.00019938,2]
[386518817,1758336639903,-696.0,0.00019938,2]
[386518818,1758336639912,-500.0,0.00019938,2]
[386518819,1758336639921,-150.0,0.00019938,2]
[386518821,1758336639931,-204.53690996,0.00019938,2]
[386518823,1758336639940,-500.0,0.00019938,2]
[386518824,1758336639950,-769.23196547,0.00019944,2]
[386518825,1758336639959,-150.0,0.00019956,2]
[386518826,1758336639968,-150.0,0.00019956,2]
[386518827,1758336639978,-500.0,0.00019956,2]
[386518828,1758336639987,-252.04243568,0.00019956,2]
[386518829,1758336639996,-150.4602456,0.00019956,2]
[386518830,1758336640006,-150.0,0.00019956,2]
[386518831,1758336640015,-150.0,0.00019956,2]
[386518832,1758336640024,-151.05511869,0.00019956,2]
[386518833,1758336640033,-502.06797421,0.00019973,2]
[386518834,1758336640043,-503.88361874,0.00019973,2]
[386518835,1758336640052,-500.0,0.00019973,2]
[386518836,1758336640061,-505.58975347,0.00019973,2]
[386518837,1758336640071,-500.0,0.00019973,2]
[386518838,1758336640080,-506.51296997,0.00019973,2]
[386518839,1758336640089,-500.0,0.00019973,2]
[386518840,1758336640099,-191.8,0.00019989,2]
[386518841,1758336640108,-151.6,0.0001999,2]
[386518842,1758336640117,-151.6,0.0001999,2]
[386518843,1758336640127,-151.6,0.0001999,2]
[386518844,1758336640136,-151.6,0.0001999,2]
[386518845,1758336640146,-151.6,0.0001999,2]
[386518846,1758336640155,-151.6,0.0001999,2]
[386518847,1758336640164,-151.6,0.0001999,2]
[386518848,1758336640173,-151.6,0.0001999,2]
[386518849,1758336640183,-151.6,0.0001999,2]
[386518850,1758336640192,-151.6,0.0001999,2]
[386518851,1758336640202,-151.6,0.0001999,2]
[386518852,1758336640211,-151.6,0.0001999,2]
[386518853,1758336640220,-151.6,0.0001999,2]
[386518854,1758336640229,-151.6,0.0001999,2]
[386518855,1758336640239,-151.6,0.0001999,2]
[386518856,1758336640248,-151.6,0.0001999,2]
[386518857,1758336640257,-151.6,0.0001999,2]
[386518858,1758336640266,-151.6,0.0001999,2]
[386518859,1758336640275,-151.6,0.0001999,2]
[386518860,1758336640284,-151.6,0.0001999,2]
[386518861,1758336640294,-151.6,0.0001999,2]
[386518862,1758336640303,-151.6,0.0001999,2]
[386518863,1758336640312,-151.6,0.0001999,2]
[386518864,1758336640321,-151.6,0.0001999,2]
[386518865,1758336640330,-151.6,0.0001999,2]
[386518866,1758336640340,-151.6,0.0001999,2]
[386518867,1758336640349,-151.6,0.0001999,2]
[386518868,1758336640359,-151.6,0.0001999,2]
[386518869,1758336640368,-151.6,0.0001999,2]
[386518870,1758336640377,-151.6,0.0001999,2]
[386518871,1758336640387,-151.6,0.0001999,2]
[386518872,1758336640396,-151.6,0.0001999,2]
[386518873,1758336640405,-151.6,0.0001999,2]
[386518874,1758336640414,-151.6,0.0001999,2]
[386518875,1758336640423,-151.6,0.0001999,2]
[386518876,1758336640432,-151.6,0.0001999,2]
[386518877,1758336640441,-151.6,0.0001999,2]
[386518878,1758336640451,-151.6,0.0001999,2]
[386518879,1758336640460,-151.6,0.0001999,2]
[386518880,1758336640470,-151.6,0.0001999,2]
[386518881,1758336640479,-151.6,0.0001999,2]
[386518882,1758336640488,-151.6,0.0001999,2]
[386518883,1758336640497,-151.6,0.0001999,2]
[386518884,1758336640506,-151.6,0.0001999,2]
[386518885,1758336640515,-151.6,0.0001999,2]
[386518886,1758336640525,-151.6,0.0001999,2]
[386518887,1758336640535,-151.6,0.0001999,2]
[386518888,1758336640544,-151.6,0.0001999,2]
[386518889,1758336640553,-151.6,0.0001999,2]
[386518890,1758336640563,-151.6,0.0001999,2]
[386518891,1758336640574,-151.6,0.0001999,2]
[386518892,1758336640585,-151.0,0.00019997,2]
[386518893,1758336640594,-300.0,0.00019999,2]
[386518894,1758336640604,-325.44623276,0.00019999,2]
[386518895,1758336640614,-1186.57533887,0.00019999,5]
[386518896,1758336640624,-23670.9179547,0.00019999,2]
[386518897,1758336640633,-1104.2421288,0.00019999,2]
[386518898,1758336640643,-101831.3150175,0.00019999,2]
[386518899,1758336640655,-12893.2088578,0.00019999,2]
[386518900,1758336640665,-1324.0,0.0002,2]
[386518901,1758336640674,-14617.14913879,0.0002,2]
[386518902,1758336640683,-33869.10348407,0.0002,2]
[386518903,1758336640692,-3623929.00942663,0.0002,2]
[386518907,1758336642952,-1178.0,0.00019878,2]
[386518908,1758336642962,-67.15944271,0.000199,2]
[386518914,1758336645820,-2637.15746917,0.000199,2]
[386518915,1758336645829,-2166.76444219,0.0002,2]
[386518916,1758336645840,-1415.91845866,0.0002,2]
[386518917,1758336645851,-255.19680902,0.0002,2]
[386518992,1758336783856,1500.0,0.000301,120]
[386518994,1758336923562,163.16,9.489e-05,2]
[386519001,1758337339163,2159.77731323,0.0002,120]
[386519005,1758337520007,11696.34248172,0.000301,120]
[386519006,1758337522793,150.0,0.00018,2]
[386519024,1758337831846,-200.0,0.00018744,2]
[386519025,1758337831857,-250.0,0.00018752,2]
[386519026,1758337831866,-161.7,0.00018802,2]
[386519027,1758337831876,-150.0,0.00018854,2]
[386519028,1758337831886,-165.9502822,0.00018866,2]
[386519029,1758337831895,-190.67,0.00018877,3]
[386519030,1758337831906,-212.25,0.00018922,2]
[386519031,1758337831915,-356.29,0.00018971,2]
[386519032,1758337831925,-163.16,0.00018977,2]
[386519033,1758337831934,-150.0,0.00018989,2]
[386519034,1758337832020,-175.57653529,0.00018999,2]
[386519035,1758337832030,-1000.0,0.00019,2]
[386519036,1758337832039,-225.66,0.00019012,2]
[386519037,1758337832049,-158.25,0.000191,2]
[386519038,1758337832059,-1000.0,0.000192,2]
[386519039,1758337832068,-1000.0,0.000192,2]
[386519040,1758337832077,-1200.0,0.00019399,2]
[386519041,1758337832086,-1000.0,0.000194,2]
[386519042,1758337832096,-167.07,0.00019489,2]
[386519043,1758337832105,-209.0,0.00019499,2]
[386519046,1758337832114,-1193.31,0.000195,2]
[386519049,1758337832124,-1419.93,0.000195,2]
[386519051,1758337832133,-168.0,0.00019576,2]
[386519053,1758337832142,-1000.0,0.000196,2]
[386519054,1758337832153,-410.0,0.00019724,2]
[386519055,1758337832167,-745.0,0.00019738,2]
[386519056,1758337832176,-4174.0,0.00019739,2]
[386519058,1758337832186,-727.0,0.00019739,2]
[386519059,1758337832195,-1000.0,0.000198,2]
[386519060,1758337832204,-410.0,0.00019809,2]
[386519061,1758337832214,-152.0,0.00019812,3]
[386519063,1758337832223,-516.38316968,0.00019839,2]
[386519064,1758337832232,-200.0,0.0001984,2]
[386519065,1758337832242,-175.9,0.00019876,2]
[386519067,1758337832251,-1261.0,0.00019878,2]
[386519068,1758337832260,-3393.0,0.00019878,2]
[386519069,1758337832269,-533.547,0.00019878,2]
[386519070,1758337832279,-2041.0,0.00019878,2]
[386519071,1758337832291,-1582.0,0.00019878,2]
[386519072,1758337832301,-569.0,0.00019878,2]
[386519073,1758337832311,-1304.0,0.00019878,2]
[386519074,1758337832320,-602.0,0.00019878,2]
[386519075,1758337832331,-813.0,0.00019878,2]
[386519076,1758337832342,-150.0,0.00019882,2]
[386519077,1758337832352,-871.84035543,0.00019899,2]
[386519078,1758337832361,-475.40420187,0.00019899,2]
[386519079,1758337832370,-1262.34966375,0.00019899,2]
[386519080,1758337832380,-475.40420182,0.00019899,2]
[386519081,1758337832389,-1262.34966372,0.00019899,2]
[386519082,1758337832398,-475.40420182,0.00019899,2]
[386519083,1758337832407,-1262.34966372,0.00019899,2]
[386519084,1758337832417,-475.40420182,0.00019899,2]
[386519085,1758337832426,-1262.34966372,0.00019899,2]
[386519086,1758337832435,-475.40420182,0.00019899,2]
[386519087,1758337832444,-1262.34966372,0.00019899,2]
[386519088,1758337832454,-475.40420182,0.000199,2]
[386519089,1758337832463,-1262.34966372,0.000199,2]
[386519090,1758337832472,-475.40420182,0.000199,2]
[386519091,1758337832481,-1262.34966372,0.000199,2]
[386519092,1758337832490,-179.5371,0.000199,2]
[386519093,1758337832499,-475.40420182,0.000199,2]
[386519094,1758337832508,-1262.34966372,0.000199,2]
[386519095,1758337832518,-475.40420182,0.000199,2]
[386519096,1758337832527,-1262.34966372,0.000199,2]
[386519097,1758337832536,-625.499,0.000199,2]
[386519098,1758337832545,-5000.0,0.000199,2]
[386519099,1758337832554,-169.06438172,0.000199,2]
[386519100,1758337832563,-575.08795992,0.000199,2]
[386519101,1758337832573,-475.40420182,0.000199,2]
[386519102,1758337832582,-1262.34966372,0.000199,2]
[386519103,1758337832591,-871.84035543,0.000199,2]
[386519104,1758337832600,-500.0,0.00019957,2]
[386519105,1758337832609,-150.0,0.00019957,2]
[386519106,1758337832620,-437.63,0.00019957,2]
[386519107,1758337832629,-152.15,0.00019957,2]
[386519108,1758337832639,-2382.66,0.00019957,2]
[386519109,1758337832648,-445.0,0.00019962,2]
[386519110,1758337832657,-510.0,0.00019962,2]
[386519111,1758337832667,-150.0,0.00019962,2]
[386519112,1758337832676,-150.0,0.00019962,2]
[386519113,1758337832685,-1121.0,0.00019962,2]
[386519114,1758337832694,-481.0,0.00019962,2]
[386519115,1758337832704,-225.66,0.00019962,2]
[386519116,1758337832714,-175.05,0.00019963,2]
[386519117,1758337832723,-300.0,0.00019963,2]
[386519118,1758337832733,-543.54,0.00019963,2]
[386519119,1758337832743,-500.0,0.00019973,2]
[386519120,1758337832752,-502.06797421,0.00019973,2]
[386519121,1758337832762,-500.0,0.00019973,2]
[386519122,1758337832771,-505.58975347,0.00019973,2]
[386519123,1758337832780,-503.88361874,0.00019973,2]
[386519124,1758337832789,-506.51296997,0.00019973,2]
[386519125,1758337832799,-500.0,0.00019973,2]
[386519126,1758337832810,-500.0,0.00019973,2]
[386519127,1758337832819,-150.0,0.00019973,2]
[386519128,1758337832828,-175.1,0.0001998,2]
[386519129,1758337832838,-175.9,0.00019983,2]
[386519130,1758337832847,-38256.16079197,0.00019989,2]
[386519131,1758337832887,-287.00083124,0.00018999,2]
[386519132,1758337832897,-1276.43797639,0.00019989,2]
[386519136,1758337839999,-80000.0,0.0001998,4]
[386519137,1758337840010,-20645.72129198,0.00019989,2]
[386519138,1758337840019,-175.1,0.00019989,2]
[386519139,1758337840029,-175.1,0.00019989,2]
[386519140,1758337840039,-150.0,0.0001999,2]
[386519141,1758337840048,-150.0,0.0001999,2]
[386519142,1758337840057,-476.0,0.0001999,2]
[386519143,1758337840067,-150.0,0.0001999,2]
[386519144,1758337840076,-150.0,0.0001999,2]
[386519145,1758337840085,-252.37302044,0.0001999,2]
[386519146,1758337840094,-2101.0,0.0001999,2]
[386519147,1758337840103,-500.0,0.0001999,2]
[386519148,1758337840112,-500.0,0.0001999,2]
[386519149,1758337840121,-252.04243568,0.0001999,2]
[386519151,1758337840130,-150.4602456,0.0001999,2]
[386519153,1758337840139,-150.0,0.0001999,2]
[386519154,1758337840150,-150.0,0.0001999,2]
[386519156,1758337840159,-151.05511869,0.0001999,2]
[386519158,1758337840169,-150.0,0.0001999,2]
[386519160,1758337840179,-667.0,0.0001999,2]
[386519162,1758337840188,-667.0,0.0001999,2]
[386519165,1758337840198,-500.0,0.0001999,2]
[386519167,1758337840208,-500.0,0.0001999,2]
[386519169,1758337840218,-204.53690996,0.0001999,2]
[386519171,1758337840227,-769.23196547,0.0001999,2]
[386519173,1758337840236,-116716.21698266,0.0001999,2]
[386519175,1758337840246,-151.17,0.0001999,2]
[386519177,1758337840255,-151.17,0.0001999,2]
[386519179,1758337840264,-151.17,0.0001999,2]
[386519181,1758337840273,-151.17,0.0001999,2]
[386519183,1758337840283,-151.17,0.0001999,2]
[386519185,1758337840296,-151.17,0.0001999,2]
[386519187,1758337840305,-151.17,0.0001999,2]
[386519189,1758337840315,-151.17,0.0001999,2]
[386519191,1758337840324,-151.17,0.0001999,2]
[386519193,1758337840335,-151.17,0.0001999,2]
[386519195,1758337840344,-151.17,0.0001999,2]
[386519197,1758337840354,-151.17,0.0001999,2]
[386519199,1758337840364,-151.17,0.0001999,2]
[386519201,1758337840373,-151.17,0.0001999,2]
[386519203,1758337840383,-151.17,0.0001999,2]
[386519205,1758337840392,-151.17,0.0001999,2]
[386519207,1758337840403,-151.17,0.0001999,2]
[386519209,1758337840411,-151.17,0.0001999,2]
[386519211,1758337840421,-151.17,0.0001999,2]
[386519213,1758337840430,-151.17,0.0001999,2]
[386519215,1758337840440,-151.17,0.0001999,2]
[386519217,1758337840449,-151.17,0.0001999,2]
[386519219,1758337840458,-151.17,0.0001999,2]
[386519221,1758337840467,-151.17,0.0001999,2]
[386519223,1758337840476,-151.17,0.0001999,2]
[386519225,1758337840485,-151.17,0.0001999,2]
[386519226,1758337840494,-171.9852946,0.0001999,2]
[386519228,1758337840504,-171.9852946,0.0001999,2]
[386519231,1758337840513,-151.17,0.0001999,2]
[386519233,1758337840523,-171.9852946,0.0001999,2]
[386519234,1758337840532,-151.17,0.0001999,2]
[386519237,1758337840542,-151.17,0.0001999,2]
[386519239,1758337840552,-151.17,0.0001999,2]
[386519240,1758337840562,-151.17,0.0001999,2]
[386519241,1758337840571,-151.17,0.0001999,2]
[386519242,1758337840581,-151.17,0.0001999,2]
[386519243,1758337840591,-151.17,0.0001999,2]
[386519244,1758337840600,-151.17,0.0001999,2]
[386519245,1758337840609,-151.17,0.0001999,2]
[386519246,1758337840619,-151.17,0.0001999,2]
[386519247,1758337840628,-151.17,0.0001999,2]
[386519248,1758337840637,-151.17,0.0001999,2]
[386519249,1758337840648,-151.17,0.0001999,2]
[386519250,1758337840657,-151.17,0.0001999,2]
[386519252,1758337840667,-151.17,0.0001999,2]
[386519253,1758337840676,-151.17,0.0001999,2]
[386519255,1758337840686,-151.17,0.0001999,2]
[386519257,1758337840695,-151.17,0.0001999,2]
[386519259,1758337840705,-151.17,0.0001999,2]
[386519261,1758337840714,-151.17,0.0001999,2]
[386519263,1758337840723,-151.17,0.0001999,2]
[386519265,1758337840733,-151.17,0.0001999,2]
[386519267,1758337840743,-151.17,0.0001999,2]
[386519269,1758337840752,-151.17,0.0001999,2]
[386519271,1758337840761,-151.17,0.0001999,2]
[386519273,1758337840770,-151.17,0.0001999,2]
[386519276,1758337840779,-151.17,0.0001999,2]
[386519277,1758337840788,-151.17,0.0001999,2]
[386519279,1758337840797,-151.17,0.0001999,2]
[386519281,1758337840807,-151.17,0.0001999,2]
[386519283,1758337840816,-151.17,0.0001999,2]
[386519285,1758337840825,-151.17,0.0001999,2]
[386519287,1758337840834,-151.17,0.0001999,2]
[386519289,1758337840844,-151.17,0.0001999,2]
[386519291,1758337840855,-151.17,0.0001999,2]
[386519293,1758337840864,-151.17,0.0001999,2]
[386519295,1758337840873,-151.17,0.0001999,2]
[386519298,1758337840883,-151.17,0.0001999,2]
[386519300,1758337840892,-151.17,0.0001999,2]
[386519302,1758337840902,-151.17,0.0001999,2]
[386519304,1758337840911,-151.17,0.0001999,2]
[386519306,1758337840921,-151.17,0.0001999,2]
[386519308,1758337840931,-151.0,0.00019997,2]
[386519310,1758337840939,-1436.57533887,0.00019998,5]
[386519312,1758337840949,-151.0,0.00019998,5]
[386519314,1758337840958,-1000.0,0.00019998,5]
[386519316,1758337840967,-151.0,0.00019998,5]
[386519318,1758337840975,-300.0,0.00019999,2]
[386519320,1758337840984,-300.0,0.00019999,2]
[386519322,1758337840994,-423676.73920609,0.00019999,5]
[386519323,1758337841003,-3000.0,0.00019999,2]
[386519325,1758337841012,-3000.0,0.00019999,7]
[386519327,1758337841020,-1998.78556602,0.00019999,12]
[386519329,1758337841029,-500.0,0.0002,2]
[386519331,1758337841039,-1326.0,0.0002,2]
[386519333,1758337841048,-14617.14913879,0.0002,2]
[386519335,1758337841057,-33869.10348407,0.0002,2]
[386519337,1758337841066,-3113941.4865053,0.0002,2]
[386519487,1758337846108,-140.12990851,0.0002,2]
[386519491,1758337914957,-313.82494903,0.00018876,2]
[386519493,1758338011644,-162.07383426,0.00018541,2]
[386519494,1758338013579,-103.97316574,0.00018541,2]
[386519500,1758338594997,1000.0,0.000185,2]
[386519502,1758338755470,1275.4,0.00030137,120]
[386519503,1758338763350,150.0,0.0001875,7]
[386519511,1758338923580,161.18,9.349e-05,2]
[386519512,1758338923773,161.18,0.00011686,2]
[386519513,1758338923982,161.18,0.00014023,2]
[386519517,1758338924208,161.18,0.0001636,2]
[386519519,1758339001970,1000.0,0.000185,2]
[386519525,1758339031967,-182.38745181,0.00018642,2]
[386519526,1758339031976,-632.25,0.00018664,2]
[386519527,1758339031987,-179.22,0.00018666,2]
[386519528,1758339031996,-178.14,0.00018686,2]
[386519529,1758339032006,-161.18,0.00018697,2]
[386519530,1758339032015,-1000.0,0.000187,2]
[386519531,1758339032025,-271.09495367,0.00018742,2]
[386519532,1758339032038,-228.90504633,0.00018742,2]
[386519533,1758339032048,-236.46630903,0.00018742,2]
[386519534,1758339032058,-200.0,0.00018745,2]
[386519535,1758339032069,-174.78,0.0001876,2]
[386519536,1758339032079,-200.90058186,0.00018798,2]
[386519537,1758339032089,-643.45358173,0.000188,2]
[386519538,1758339032102,-2901.33309491,0.000188,2]
[386519539,1758339032124,-431.45988169,0.000188,2]
[386519540,1758339032155,-35.79344167,0.000188,2]
[386519541,1758339032166,-1200.0,0.00018844,2]
[386519542,1758339032175,-634.1,0.00018845,2]
[386519543,1758339032185,-1000.0,0.000189,2]
[386519544,1758339032195,-169.24,0.00019058,2]
[386519545,1758339032204,-1000.0,0.000191,2]
[386519546,1758339032214,-168.0,0.0001916,2]
[386519547,1758339032224,-173.0,0.00019296,2]
[386519548,1758339032234,-2412.18,0.000193,2]
[386519549,1758339032244,-1000.0,0.000193,2]
[386519550,1758339032253,-15000.0,0.00019463,7]
[386519551,1758339032264,-1000.0,0.000195,2]
[386519552,1758339032274,-173.0,0.00019575,2]
[386519553,1758339032283,-503.0,0.00019616,2]
[386519554,1758339032294,-164.51,0.00019618,2]
[386519555,1758339032304,-154.73,0.00019624,2]
[386519557,1758339032314,-23106.0,0.00019658,2]
[386519560,1758339032324,-1000.0,0.000197,2]
[386519563,1758339032334,-4032.77504,0.000198,2]
[386519566,1758339032344,-173.0,0.00019819,2]
[386519569,1758339032355,-200.0,0.0001984,2]
[386519571,1758339032364,-4174.0,0.0001985,2]
[386519572,1758339032374,-1261.0,0.0001985,2]
[386519573,1758339032383,-516.38316968,0.00019852,2]
[386519574,1758339032393,-500.399,0.00019877,2]
[386519575,1758339032403,-151.0,0.00019888,2]
[386519576,1758339032412,-151.0,0.00019888,2]
[386519577,1758339032422,-151.0,0.00019888,2]
[386519578,1758339032432,-322.6107,0.00019888,2]
[386519579,1758339032442,-151.0,0.00019888,2]
[386519580,1758339032452,-151.0,0.00019888,2]
[386519581,1758339032461,-152.6943886,0.00019888,2]
[386519582,1758339032471,-170.77417751,0.00019888,2]
[386519583,1758339032481,-202.20974195,0.00019888,2]
[386519584,1758339032491,-601.3376128,0.00019888,2]
[386519585,1758339032500,-163.83049568,0.00019888,2]
[386519586,1758339032510,-201.88092018,0.00019888,2]
[386519587,1758339032519,-500.0,0.00019888,2]
[386519588,1758339032529,-466.00118554,0.00019888,2]
[386519589,1758339032538,-150.0,0.000199,2]
[386519590,1758339032548,-5000.0,0.000199,2]
[386519591,1758339032557,-1949.30644136,0.000199,10]
[386519592,1758339032567,-1150.17591982,0.000199,2]
[386519593,1758339032576,-318.17131735,0.000199,2]
[386519594,1758339032585,-8487.40196422,0.000199,2]
[386519595,1758339032595,-150.0,0.00019905,2]
[386519596,1758339032605,-173.0,0.00019924,2]
[386519597,1758339032614,-602.0,0.00019939,2]
[386519598,1758339032623,-569.0,0.00019939,2]
[386519599,1758339032633,-1582.0,0.00019939,2]
[386519600,1758339032642,-1304.0,0.00019939,2]
[386519601,1758339032652,-813.0,0.00019939,2]
[386519602,1758339032661,-898.0,0.00019939,2]
[386519603,1758339032672,-1178.0,0.00019939,2]
[386519604,1758339032682,-4229.0,0.00019939,2]
[386519605,1758339032692,-1425.0,0.00019952,2]
[386519606,1758339032701,-500.0,0.00019973,2]
[386519607,1758339032710,-500.0,0.00019973,2]
[386519608,1758339032719,-500.0,0.00019973,2]